[Event "Torneo Nuevo Centro. Jornada 10"]
[Site "Chess.com"]
[Date "2020.08.21"]
[Round "7"]
[White "Iravedra Ainkov, Francisco"]
[Black "Bosch Jordà, Ricard"]
[Result "1/2-1/2"]
[WhiteElo "1830"]
[BlackElo "1940"]
[TimeControl "180+2"]
[EndTime "11:50:47 PDT"]
[Termination "Partida en tablas por mutuo acuerdo"]

1. e4 {[%clk 0:03:01.9]} 1... c5 {[%clk 0:02:58.5]} 2. c3 {[%clk 0:02:57.8]}
2... Nf6 {[%clk 0:02:58.1]} 3. e5 {[%clk 0:02:58.5]} 3... Nd5 {[%clk 0:02:58.6]}
4. Nf3 {[%clk 0:02:58.2]} 4... Nc6 {[%clk 0:02:57.7]} 5. Bc4 {[%clk 0:02:55.9]}
5... Nb6 {[%clk 0:02:57.9]} 6. Bb3 {[%clk 0:02:56.3]} 6... c4 {[%clk 0:02:58.8]}
7. Bc2 {[%clk 0:02:54.2]} 7... g6 {[%clk 0:02:59.8]} 8. d4 {[%clk 0:02:54.6]}
8... cxd3 {[%clk 0:03:00.4]} 9. Bxd3 {[%clk 0:02:54.4]} 9... Bg7 {[%clk
0:03:01.6]} 10. Bf4 {[%clk 0:02:43.6]} 10... O-O {[%clk 0:03:01.9]} 11. O-O
{[%clk 0:02:43.9]} 11... d6 {[%clk 0:02:43.4]} 12. exd6 {[%clk 0:02:38.8]} 12...
exd6 {[%clk 0:02:45.3]} 13. Na3 {[%clk 0:02:38.3]} 13... Ne5 {[%clk 0:02:44.6]}
14. Bc2 {[%clk 0:02:31.2]} 14... Bg4 {[%clk 0:02:38.4]} 15. Be4 {[%clk
0:02:27.1]} 15... d5 {[%clk 0:02:16.7]} 16. Bxe5 {[%clk 0:02:16.7]} 16... dxe4
{[%clk 0:01:27.1]} 17. Qxd8 {[%clk 0:02:14.3]} 17... Rfxd8 {[%clk 0:01:27.5]}
18. Bxg7 {[%clk 0:02:11.7]} 18... exf3 {[%clk 0:01:27.7]} 19. Bd4 {[%clk
0:02:11.9]} 19... fxg2 {[%clk 0:01:22.2]} 20. Kxg2 {[%clk 0:02:13.8]} 20... Nd5
{[%clk 0:01:22.9]} 21. Rfe1 {[%clk 0:02:04.8]} 21... h5 {[%clk 0:01:15.2]} 22.
f3 {[%clk 0:02:01.4]} 22... Bf5 {[%clk 0:01:10.6]} 23. Rad1 {[%clk 0:01:58.1]}
23... Nf4+ {[%clk 0:01:09.2]} 24. Kf2 {[%clk 0:01:56.8]} 24... Nd3+ {[%clk
0:01:10.2]} 25. Rxd3 {[%clk 0:01:48.9]} 25... Bxd3 {[%clk 0:01:10.9]} 26. Re7
{[%clk 0:01:50.1]} 26... Re8 {[%clk 0:00:59.6]} 27. Rxb7 {[%clk 0:01:47.4]}
27... Re2+ {[%clk 0:00:54.9]} 28. Kg3 {[%clk 0:01:47]} 28... a6 {[%clk
0:00:47.5]} 29. h4 {[%clk 0:01:42.3]} 29... Rae8 {[%clk 0:00:37]} 30. Bf6 {[%clk
0:01:33.1]} 30... R2e6 {[%clk 0:00:24.9]} 31. Bd4 {[%clk 0:01:30.4]} 31... Re1
{[%clk 0:00:19.6]} 32. Kg2 {[%clk 0:01:23.8]} 32... Rf1 {[%clk 0:00:12.1]} 33.
Rb6 {[%clk 0:01:04.9]} 33... Re2+ {[%clk 0:00:08.8]} 34. Kxf1 {[%clk 0:01:00]}
34... Rxb2+ {[%clk 0:00:09.3]} 35. Ke1 {[%clk 0:00:58.1]} 35... Re2+ {[%clk
0:00:04.7]} 36. Kd1 {[%clk 0:00:57.8]} 36... f5 {[%clk 0:00:05.5]} 37. Rxg6+
{[%clk 0:00:51.7]} 37... Kf7 {[%clk 0:00:06]} 38. Rd6 {[%clk 0:00:43.9]} 38...
Rxa2 {[%clk 0:00:05.6]} 39. Nb1 {[%clk 0:00:28.9]} 39... Bxb1 {[%clk 0:00:05.1]}
40. Rh6 {[%clk 0:00:26.8]} 40... Rh2 {[%clk 0:00:04]} 41. Rxh5 {[%clk
0:00:26.1]} 41... Bd3 {[%clk 0:00:04.6]} 42. Be5 {[%clk 0:00:23.8]} 42... Be2+
{[%clk 0:00:05]} 43. Ke1 {[%clk 0:00:20.8]} 43... Bxf3 {[%clk 0:00:06.4]} 44.
Rxf5+ {[%clk 0:00:20.1]} 44... Ke6 {[%clk 0:00:06.7]} 45. Bxh2 {[%clk 0:00:06]}
45... Kxf5 {[%clk 0:00:07.6]} 46. Kf2 {[%clk 0:00:07.5]} 46... Bh5 {[%clk
0:00:06.2]} 47. Ke3 {[%clk 0:00:08.6]} 47... Ke6 {[%clk 0:00:06.3]} 48. Bg3
{[%clk 0:00:09.1]} 48... Kd5 {[%clk 0:00:07.2]} 49. Kd3 {[%clk 0:00:10.1]} 49...
Kc5 {[%clk 0:00:08]} 50. Bf2+ {[%clk 0:00:08.7]} 50... Kb5 {[%clk 0:00:08.7]}
51. Kd4 {[%clk 0:00:08.9]} 51... a5 {[%clk 0:00:09.5]} 52. Be3 {[%clk
0:00:06.4]} 52... a4 {[%clk 0:00:10.2]} 53. Bc1 {[%clk 0:00:07.8]} 53... Bg4
{[%clk 0:00:09.4]} 54. c4+ {[%clk 0:00:08.5]} 54... Kb4 {[%clk 0:00:10.2]} 55.
c5 {[%clk 0:00:09.2]} 55... Kb3 {[%clk 0:00:09.4]} 56. c6 {[%clk 0:00:06.5]}
56... Kc2 {[%clk 0:00:09.5]} 57. Ba3 {[%clk 0:00:06.9]} 57... Kb3 {[%clk
0:00:10.7]} 58. Bf8 {[%clk 0:00:06.9]} 58... a3 {[%clk 0:00:08.5]} 59. Bxa3
{[%clk 0:00:07.8]} 59... Kxa3 {[%clk 0:00:10.4]} 60. Kd5 {[%clk 0:00:08.8]}
60... Kb4 {[%clk 0:00:10.9]} 61. Kd6 {[%clk 0:00:09.3]} 61... Kb5 {[%clk
0:00:12.1]} 62. c7 {[%clk 0:00:10]} 62... Kb6 {[%clk 0:00:12.8]} 63. h5 {[%clk
0:00:10]} 63... Kb7 {[%clk 0:00:12.3]} 64. h6 {[%clk 0:00:07.6]} 64... Bf5
{[%clk 0:00:12.9]} 65. Ke5 {[%clk 0:00:05.1]} 65... Bc2 {[%clk 0:00:11.5]} 66.
Kd6 {[%clk 0:00:05.7]} 66... Kc8 {[%clk 0:00:12.6]} 67. Kc6 {[%clk 0:00:04.3]}
67... Be4+ {[%clk 0:00:13.1]} 68. Kd6 {[%clk 0:00:04.8]} 1/2-1

[Event "Torneo Nuevo Centro. Jornada 10"]
[Site "Chess.com"]
[Date "2020.08.21"]
[Round "8"]
[White "Leal Uribe, Jhonny Alberto"]
[Black "Escalona Moncholi, Felix"]
[Result "1/2-1/2"]
[WhiteElo "2435"]
[BlackElo "2098"]
[TimeControl "180+2"]
[EndTime "11:51:47 PDT"]
[Termination "Partida en tablas por mutuo acuerdo"]

1. d4 {[%clk 0:03:01.9]} 1... d5 {[%clk 0:03:00.2]} 2. Nf3 {[%clk 0:03:01.6]}
2... c5 {[%clk 0:03:00.9]} 3. c3 {[%clk 0:03:02]} 3... Nc6 {[%clk 0:03:01.5]} 4.
e3 {[%clk 0:03:03.4]} 4... e6 {[%clk 0:02:59.9]} 5. Nbd2 {[%clk 0:03:04.3]} 5...
Nf6 {[%clk 0:03:00.6]} 6. Bd3 {[%clk 0:03:04.5]} 6... Bd6 {[%clk 0:03:01.5]} 7.
dxc5 {[%clk 0:03:04.9]} 7... Bxc5 {[%clk 0:03:02.2]} 8. O-O {[%clk 0:03:06.5]}
8... O-O {[%clk 0:03:03]} 9. e4 {[%clk 0:03:07.6]} 9... dxe4 {[%clk 0:03:02.7]}
10. Nxe4 {[%clk 0:03:08.5]} 10... Nxe4 {[%clk 0:03:03.7]} 11. Bxe4 {[%clk
0:03:10.4]} 11... Qxd1 {[%clk 0:03:04.8]} 12. Rxd1 {[%clk 0:03:11.1]} 1/2-1

[Event "Torneo Nuevo Centro. Jornada 10"]
[Site "Chess.com"]
[Date "2020.08.21"]
[Round "8"]
[White "Pardo Ruiz, Beatriz"]
[Black "Maestre Soler, Sergio"]
[Result "0-1"]
[WhiteElo "1276"]
[BlackElo "945"]
[TimeControl "180+2"]
[EndTime "11:54:19 PDT"]
[Termination "Victoria de Sergiete2011 por jaque mate"]

1. e4 {[%clk 0:03:01.9]} 1... e5 {[%clk 0:02:59.2]} 2. Nf3 {[%clk 0:03:01.3]}
2... Bc5 {[%clk 0:02:56.2]} 3. Nxe5 {[%clk 0:03:00.6]} 3... Qh4 {[%clk
0:02:56.1]} 4. Qf3 {[%clk 0:02:57.8]} 4... Nf6 {[%clk 0:02:53.6]} 5. Nc3 {[%clk
0:02:56.9]} 5... Nc6 {[%clk 0:02:48.9]} 6. Nxc6 {[%clk 0:02:52.7]} 6... dxc6
{[%clk 0:02:49.9]} 7. e5 {[%clk 0:02:47]} 7... Nd7 {[%clk 0:02:27.6]} 8. Bc4
{[%clk 0:02:39.1]} 8... Nxe5 {[%clk 0:02:22.8]} 9. Qe2 {[%clk 0:02:35.3]} 9...
Bd6 {[%clk 0:01:57.2]} 10. O-O {[%clk 0:02:24.5]} 10... O-O {[%clk 0:01:50.2]}
11. d3 {[%clk 0:02:19.6]} 11... Nxc4 {[%clk 0:01:28.1]} 12. dxc4 {[%clk
0:02:16.7]} 12... Qxh2# {[%clk 0:01:27.7]} 0

[Event "Torneo Nuevo Centro. Jornada 10"]
[Site "Chess.com"]
[Date "2020.08.21"]
[Round "8"]
[White "Ursariu, Nikolas Victor"]
[Black "Conejero Martínez, Víctor"]
[Result "1-0"]
[WhiteElo "1167"]
[BlackElo "1390"]
[TimeControl "180+2"]
[EndTime "11:54:20 PDT"]
[Termination "Victoria de NikolasVictor por abandono"]

1. e4 {[%clk 0:03:01.9]} 1... c5 {[%clk 0:03:00.2]} 2. Nf3 {[%clk 0:03:01.2]}
2... Nc6 {[%clk 0:03:00.9]} 3. Nc3 {[%clk 0:03:01.3]} 3... d6 {[%clk 0:02:59.8]}
4. Bc4 {[%clk 0:03:00.2]} 4... e6 {[%clk 0:02:59.8]} 5. d3 {[%clk 0:02:59.8]}
5... Nf6 {[%clk 0:02:58.6]} 6. Bg5 {[%clk 0:02:55.9]} 6... a6 {[%clk 0:02:57]}
7. O-O {[%clk 0:02:50.7]} 7... b5 {[%clk 0:02:57.6]} 8. Bb3 {[%clk 0:02:47.6]}
8... Be7 {[%clk 0:02:50.7]} 9. Re1 {[%clk 0:02:45.2]} 9... d5 {[%clk 0:02:49.8]}
10. exd5 {[%clk 0:02:43.6]} 10... exd5 {[%clk 0:02:49.6]} 11. Bxf6 {[%clk
0:02:40.8]} 11... c4 {[%clk 0:02:45.2]} 12. Bxe7 {[%clk 0:02:38.3]} 12... Nxe7
{[%clk 0:02:44.1]} 13. dxc4 {[%clk 0:02:34.8]} 13... dxc4 {[%clk 0:02:44.4]} 14.
Qxd8+ {[%clk 0:02:33.8]} 14... Kxd8 {[%clk 0:02:44.4]} 15. Rad1+ {[%clk
0:02:35.3]} 15... Ke8 {[%clk 0:02:41.5]} 16. Rd2 {[%clk 0:02:32.9]} 16... cxb3
{[%clk 0:02:41.8]} 17. cxb3 {[%clk 0:02:33.9]} 17... f6 {[%clk 0:02:41.3]} 18.
Rde2 {[%clk 0:02:31.5]} 18... Ra7 {[%clk 0:02:38.3]} 19. Nd5 {[%clk 0:02:26.5]}
19... Bb7 {[%clk 0:02:23.4]} 20. Rxe7+ {[%clk 0:02:20.4]} 20... Kf8 {[%clk
0:02:23]} 21. Re8+ {[%clk 0:02:20.4]} 21... Kf7 {[%clk 0:02:21.5]} 22. R1e7+
{[%clk 0:02:20.9]} 22... Kg6 {[%clk 0:02:19.5]} 23. Rxh8 {[%clk 0:02:21.4]}
23... Bxd5 {[%clk 0:02:19.7]} 24. Rxa7 {[%clk 0:02:20.8]} 24... Bxf3 {[%clk
0:02:20]} 25. gxf3 {[%clk 0:02:20.2]} 1

[Event "Torneo Nuevo Centro. Jornada 10"]
[Site "Chess.com"]
[Date "2020.08.21"]
[Round "8"]
[White "Gukasov, Artem"]
[Black "Polikarpov, Anton"]
[Result "1-0"]
[WhiteElo "1466"]
[BlackElo "1314"]
[TimeControl "180+2"]
[EndTime "11:54:44 PDT"]
[Termination "Victoria de ArtemGukasov por jaque mate"]

1. e4 {[%clk 0:02:59.8]} 1... e5 {[%clk 0:03:00.2]} 2. Nf3 {[%clk 0:02:58.2]}
2... Nc6 {[%clk 0:03:00]} 3. Bc4 {[%clk 0:02:52.5]} 3... Bc5 {[%clk 0:02:56.8]}
4. Nc3 {[%clk 0:02:47.5]} 4... d6 {[%clk 0:02:56.1]} 5. d3 {[%clk 0:02:40.8]}
5... Bg4 {[%clk 0:02:55.7]} 6. h3 {[%clk 0:02:32]} 6... Bxf3 {[%clk 0:02:53.2]}
7. Qxf3 {[%clk 0:02:33.9]} 7... Nf6 {[%clk 0:02:47.1]} 8. Bg5 {[%clk 0:02:33.6]}
8... h6 {[%clk 0:02:28.9]} 9. Be3 {[%clk 0:02:30.7]} 9... Bxe3 {[%clk
0:02:27.5]} 10. fxe3 {[%clk 0:02:30.7]} 10... O-O {[%clk 0:02:20]} 11. O-O-O
{[%clk 0:02:23.8]} 11... Nb4 {[%clk 0:02:17.1]} 12. a3 {[%clk 0:02:23.6]} 12...
Nc6 {[%clk 0:02:13.6]} 13. Rdf1 {[%clk 0:02:14.6]} 13... Na5 {[%clk 0:02:10.8]}
14. Ba2 {[%clk 0:02:13.8]} 14... c6 {[%clk 0:02:06.3]} 15. g4 {[%clk 0:02:05.5]}
15... h5 {[%clk 0:01:58.9]} 16. g5 {[%clk 0:02:01.7]} 16... Nh7 {[%clk 0:01:59]}
17. Bxf7+ {[%clk 0:02:01.4]} 17... Kh8 {[%clk 0:01:56.1]} 18. g6 {[%clk
0:02:01.3]} 18... Ng5 {[%clk 0:01:55.8]} 19. Qxh5+ {[%clk 0:02:01.3]} 19... Nh7
{[%clk 0:01:50.8]} 20. Qxh7# {[%clk 0:02:01]} 1

[Event "Torneo Nuevo Centro. Jornada 10"]
[Site "Chess.com"]
[Date "2020.08.21"]
[Round "8"]
[White "Perez Garcia, Jose Miguel"]
[Black "Iravedra Ainkov, Francisco"]
[Result "1-0"]
[WhiteElo "2062"]
[BlackElo "1827"]
[TimeControl "180+2"]
[EndTime "11:54:57 PDT"]
[Termination "Victoria de PEREZOV69 por abandono"]

1. e4 {[%clk 0:03:01.9]} 1... d6 {[%clk 0:02:55.6]} 2. g3 {[%clk 0:03:00.3]}
2... Nf6 {[%clk 0:02:47]} 3. Bg2 {[%clk 0:03:01.4]} 3... g6 {[%clk 0:02:47.2]}
4. Ne2 {[%clk 0:03:01.8]} 4... Nc6 {[%clk 0:02:44.1]} 5. O-O {[%clk 0:03:00.8]}
5... Bg7 {[%clk 0:02:44.1]} 6. h3 {[%clk 0:03:01.8]} 6... O-O {[%clk 0:02:41.3]}
7. d4 {[%clk 0:03:02.3]} 7... e5 {[%clk 0:02:32.9]} 8. c3 {[%clk 0:03:03.1]}
8... Bd7 {[%clk 0:02:31.9]} 9. Be3 {[%clk 0:02:59.1]} 9... Qc8 {[%clk 0:02:32]}
10. Kh2 {[%clk 0:02:59]} 10... h5 {[%clk 0:02:30.3]} 11. f3 {[%clk 0:02:56.9]}
11... Kh7 {[%clk 0:02:21.5]} 12. Qd2 {[%clk 0:02:56.5]} 12... a6 {[%clk
0:02:21.2]} 13. d5 {[%clk 0:02:43.7]} 13... Na5 {[%clk 0:02:19.1]} 14. b3 {[%clk
0:02:43.9]} 14... b6 {[%clk 0:02:19.2]} 15. c4 {[%clk 0:02:44.8]} 15... Nb7
{[%clk 0:02:18.5]} 16. Nbc3 {[%clk 0:02:45.5]} 16... Nc5 {[%clk 0:02:17.7]} 17.
b4 {[%clk 0:02:45.2]} 17... Na4 {[%clk 0:02:05.8]} 18. Nxa4 {[%clk 0:02:45.6]}
18... Bxa4 {[%clk 0:02:05.3]} 19. Nc3 {[%clk 0:02:45.8]} 19... Bd7 {[%clk
0:02:01.8]} 20. c5 {[%clk 0:02:47.1]} 20... bxc5 {[%clk 0:01:54.5]} 21. bxc5
{[%clk 0:02:49]} 21... Bb5 {[%clk 0:01:53.6]} 22. Rfb1 {[%clk 0:02:47.9]} 22...
Bd7 {[%clk 0:01:44.1]} 23. c6 {[%clk 0:02:47.1]} 23... Be8 {[%clk 0:01:36.5]}
24. Rb7 {[%clk 0:02:47.7]} 24... Rb8 {[%clk 0:01:36.2]} 25. Rab1 {[%clk
0:02:47.7]} 25... Rxb7 {[%clk 0:01:33.8]} 26. cxb7 {[%clk 0:02:49.6]} 26... Qb8
{[%clk 0:01:32.6]} 27. Ba7 {[%clk 0:02:49.9]} 27... Qxa7 {[%clk 0:01:24.7]} 28.
b8=Q {[%clk 0:02:50.3]} 28... Bb5 {[%clk 0:01:26.6]} 29. Qxa7 {[%clk 0:02:49.5]}
1

[Event "Torneo Nuevo Centro. Jornada 10"]
[Site "Chess.com"]
[Date "2020.08.21"]
[Round "8"]
[White "Montesinos Diaz, Luis"]
[Black "Soliva Ruiz, Ramon"]
[Result "1-0"]
[WhiteElo "1878"]
[BlackElo "1525"]
[TimeControl "180+2"]
[EndTime "11:55:09 PDT"]
[Termination "Victoria de Gwiso_06 por abandono"]

1. e4 {[%clk 0:03:01.9]} 1... d6 {[%clk 0:02:59.4]} 2. Nf3 {[%clk 0:03:02.2]}
2... g6 {[%clk 0:03:00.5]} 3. Bc4 {[%clk 0:03:03]} 3... e6 {[%clk 0:03:00.5]} 4.
d4 {[%clk 0:03:03.9]} 4... Bg7 {[%clk 0:03:01.3]} 5. c3 {[%clk 0:03:05.2]} 5...
a6 {[%clk 0:03:01]} 6. O-O {[%clk 0:03:05.8]} 6... Ne7 {[%clk 0:03:01.6]} 7. Bf4
{[%clk 0:03:06]} 7... b5 {[%clk 0:03:01.3]} 8. Bd3 {[%clk 0:03:06.3]} 8... Nd7
{[%clk 0:02:57.3]} 9. a4 {[%clk 0:03:05.5]} 9... Bb7 {[%clk 0:02:56.4]} 10. Nbd2
{[%clk 0:02:58.2]} 10... bxa4 {[%clk 0:02:51.7]} 11. Qxa4 {[%clk 0:02:56.7]}
11... O-O {[%clk 0:02:44.5]} 12. h3 {[%clk 0:02:55.5]} 12... c5 {[%clk 0:02:26]}
13. Bxd6 {[%clk 0:02:53.2]} 13... cxd4 {[%clk 0:02:24]} 14. cxd4 {[%clk
0:02:51.9]} 14... Nb6 {[%clk 0:02:17.5]} 15. Qb4 {[%clk 0:02:45.7]} 15... Nc6
{[%clk 0:02:10.6]} 16. Qa3 {[%clk 0:02:41.2]} 16... Re8 {[%clk 0:02:07.1]} 17.
e5 {[%clk 0:02:39.8]} 17... Nd5 {[%clk 0:01:55.2]} 18. Ne4 {[%clk 0:02:27.3]}
18... Qd7 {[%clk 0:01:34.7]} 19. Nc5 {[%clk 0:02:24.1]} 19... Qc8 {[%clk
0:01:30.1]} 20. Qb3 {[%clk 0:02:19.3]} 20... Na5 {[%clk 0:01:23.4]} 21. Rxa5
{[%clk 0:02:12]} 1

[Event "Torneo Nuevo Centro. Jornada 10"]
[Site "Chess.com"]
[Date "2020.08.21"]
[Round "8"]
[White "Vicent Lázaro, Elena"]
[Black "Alvarez Usina, Jordi"]
[Result "0-1"]
[WhiteElo "677"]
[BlackElo "1262"]
[TimeControl "180+2"]
[EndTime "11:55:21 PDT"]
[Termination "Victoria de jordi_alvarez por jaque mate"]

1. e4 {[%clk 0:03:01.6]} 1... e5 {[%clk 0:03:00.1]} 2. c4 {[%clk 0:03:00.6]}
2... Nf6 {[%clk 0:02:57.1]} 3. c5 {[%clk 0:02:59.1]} 3... Bxc5 {[%clk 0:02:57]}
4. Bc4 {[%clk 0:02:58.6]} 4... d6 {[%clk 0:02:47.4]} 5. Bb3 {[%clk 0:02:57.2]}
5... Nxe4 {[%clk 0:02:46.8]} 6. Qc2 {[%clk 0:02:52.9]} 6... Nxf2 {[%clk
0:02:39.4]} 7. Qc4 {[%clk 0:02:51.4]} 7... Be6 {[%clk 0:02:38.3]} 8. Qb5+ {[%clk
0:02:43.9]} 8... Bd7 {[%clk 0:02:21.3]} 9. Qxb7 {[%clk 0:02:41]} 9... Bc6 {[%clk
0:02:21.1]} 10. Qxa8 {[%clk 0:02:06]} 10... Bxa8 {[%clk 0:02:20.8]} 11. Nh3
{[%clk 0:01:56.7]} 11... Nxh1 {[%clk 0:02:20]} 12. Ng5 {[%clk 0:01:56.3]} 12...
Qxg5 {[%clk 0:02:13.4]} 13. d4 {[%clk 0:01:55.1]} 13... Qxc1+ {[%clk 0:01:55]}
14. Ke2 {[%clk 0:01:53.7]} 14... Qxb2+ {[%clk 0:01:55.1]} 15. Kd1 {[%clk
0:01:47]} 15... Bxd4 {[%clk 0:01:54.9]} 16. Bxf7+ {[%clk 0:01:42.7]} 16... Kxf7
{[%clk 0:01:54.5]} 17. Ke1 {[%clk 0:01:41.5]} 17... Qxa1 {[%clk 0:01:54.6]} 18.
Kf1 {[%clk 0:01:37]} 18... Qxb1+ {[%clk 0:01:55.4]} 19. Ke2 {[%clk 0:01:36.9]}
19... Qxa2+ {[%clk 0:01:54.7]} 20. Kf1 {[%clk 0:01:34.9]} 20... Qxg2+ {[%clk
0:01:51.2]} 21. Ke1 {[%clk 0:01:34.6]} 21... Qxh2 {[%clk 0:01:51.8]} 22. Kf1
{[%clk 0:01:34.7]} 22... Qf2# {[%clk 0:01:51.7]} 0

[Event "Torneo Nuevo Centro. Jornada 10"]
[Site "Chess.com"]
[Date "2020.08.21"]
[Round "8"]
[White "Sampedro Roig, Josep Francesc"]
[Black "Cantero Navarro, Antonio"]
[Result "1-0"]
[WhiteElo "1833"]
[BlackElo "1926"]
[TimeControl "180+2"]
[EndTime "11:55:36 PDT"]
[Termination "Victoria de Abrekurios por abandono"]

1. e4 {[%clk 0:03:00.8]} 1... c5 {[%clk 0:03:00.3]} 2. Nf3 {[%clk 0:03:01.3]}
2... Nc6 {[%clk 0:03:00.9]} 3. d4 {[%clk 0:03:02.1]} 3... cxd4 {[%clk
0:03:01.5]} 4. Nxd4 {[%clk 0:03:02.9]} 4... g6 {[%clk 0:03:00.8]} 5. c4 {[%clk
0:03:01.8]} 5... Bg7 {[%clk 0:03:01.1]} 6. Be3 {[%clk 0:03:02.4]} 6... Nf6
{[%clk 0:03:02]} 7. Nc3 {[%clk 0:03:03.2]} 7... O-O {[%clk 0:03:03.2]} 8. Be2
{[%clk 0:03:03.9]} 8... d6 {[%clk 0:02:55.1]} 9. O-O {[%clk 0:03:03.6]} 9... a5
{[%clk 0:02:49.3]} 10. Rc1 {[%clk 0:02:53.6]} 10... Nxd4 {[%clk 0:02:48.7]} 11.
Bxd4 {[%clk 0:02:54.3]} 11... Bd7 {[%clk 0:02:50]} 12. b3 {[%clk 0:02:51.8]}
12... Bc6 {[%clk 0:02:51.1]} 13. f3 {[%clk 0:02:52.7]} 13... Nd7 {[%clk
0:02:48.1]} 14. Bxg7 {[%clk 0:02:45.8]} 14... Kxg7 {[%clk 0:02:50]} 15. Qd4+
{[%clk 0:02:45.3]} 15... Kg8 {[%clk 0:02:44]} 16. Rfd1 {[%clk 0:02:45.8]} 16...
Qb6 {[%clk 0:02:42.1]} 17. Nd5 {[%clk 0:02:36.5]} 17... Bxd5 {[%clk 0:02:39.4]}
18. cxd5 {[%clk 0:02:23.8]} 18... Qxd4+ {[%clk 0:02:38.2]} 19. Rxd4 {[%clk
0:02:24.6]} 19... Rfc8 {[%clk 0:02:32.6]} 20. Rdc4 {[%clk 0:02:25.5]} 20... Rxc4
{[%clk 0:02:17.4]} 21. Rxc4 {[%clk 0:02:26.3]} 21... Nc5 {[%clk 0:02:16.3]} 22.
b4 {[%clk 0:02:09.9]} 22... axb4 {[%clk 0:02:15.7]} 23. Rxb4 {[%clk 0:02:09.2]}
23... Rxa2 {[%clk 0:02:16.8]} 24. Bc4 {[%clk 0:01:59.6]} 24... Kg7 {[%clk
0:02:13.2]} 25. Bxa2 {[%clk 0:01:59.7]} 25... Kf6 {[%clk 0:01:59.5]} 26. Bc4
{[%clk 0:01:59.2]} 26... Ke5 {[%clk 0:01:59.9]} 27. Kf2 {[%clk 0:01:59.5]} 27...
Kd4 {[%clk 0:01:59.5]} 28. Bb5+ {[%clk 0:01:57.6]} 28... Kc3 {[%clk 0:02:00.1]}
29. Rc4+ {[%clk 0:01:58.5]} 29... Kd2 {[%clk 0:01:57.7]} 30. Rxc5 {[%clk
0:01:59.3]} 30... dxc5 {[%clk 0:01:58.3]} 31. e5 {[%clk 0:02:00.5]} 31... Kc3
{[%clk 0:01:57.4]} 32. d6 {[%clk 0:02:01.3]} 32... exd6 {[%clk 0:01:58.2]} 33.
exd6 {[%clk 0:02:02.4]} 1

[Event "Torneo Nuevo Centro. Jornada 10"]
[Site "Chess.com"]
[Date "2020.08.21"]
[Round "8"]
[White "Marques Montolio, Luis"]
[Black "Romera Navia, Alberto"]
[Result "1-0"]
[WhiteElo "1461"]
[BlackElo "1776"]
[TimeControl "180+2"]
[EndTime "11:55:49 PDT"]
[Termination "Victoria de ateneomaritimo por jaque mate"]

1. e4 {[%clk 0:03:01.9]} 1... e5 {[%clk 0:03:00]} 2. Nf3 {[%clk 0:03:02.4]} 2...
Bc5 {[%clk 0:02:59.4]} 3. Bc4 {[%clk 0:03:00.9]} 3... Nc6 {[%clk 0:02:55.7]} 4.
O-O {[%clk 0:02:59.6]} 4... Nf6 {[%clk 0:02:56.2]} 5. d3 {[%clk 0:02:59.9]} 5...
O-O {[%clk 0:02:54.1]} 6. c3 {[%clk 0:02:58.1]} 6... d5 {[%clk 0:02:54.7]} 7.
exd5 {[%clk 0:02:58.1]} 7... Nxd5 {[%clk 0:02:53.2]} 8. b4 {[%clk 0:02:50.3]}
8... Bb6 {[%clk 0:02:49.8]} 9. Qb3 {[%clk 0:02:48.7]} 9... Be6 {[%clk
0:02:48.8]} 10. a4 {[%clk 0:02:44.3]} 10... a5 {[%clk 0:02:48.9]} 11. b5 {[%clk
0:02:39.5]} 11... Nce7 {[%clk 0:02:49.5]} 12. Nxe5 {[%clk 0:02:38.7]} 12... Qd6
{[%clk 0:02:43.7]} 13. Nf3 {[%clk 0:02:36.2]} 13... Nf4 {[%clk 0:02:33.9]} 14.
Bxe6 {[%clk 0:02:33.7]} 14... Nxe6 {[%clk 0:02:34.4]} 15. d4 {[%clk 0:02:32.8]}
15... Rae8 {[%clk 0:02:27.8]} 16. Nbd2 {[%clk 0:02:14.7]} 16... Nf4 {[%clk
0:02:22.2]} 17. Nc4 {[%clk 0:02:13.8]} 17... Ne2+ {[%clk 0:02:23]} 18. Kh1
{[%clk 0:02:13.1]} 18... Qe6 {[%clk 0:02:24.2]} 19. Be3 {[%clk 0:01:52.5]} 19...
Nf5 {[%clk 0:02:22.8]} 20. Qa2 {[%clk 0:01:12.3]} 20... Nxc3 {[%clk 0:02:19.5]}
21. Qc2 {[%clk 0:00:59.5]} 21... Qxc4 {[%clk 0:02:18.4]} 22. Rac1 {[%clk
0:00:56.8]} 22... Nxe3 {[%clk 0:02:17.9]} 23. fxe3 {[%clk 0:00:56.5]} 23... Rxe3
{[%clk 0:02:18.7]} 24. Ng5 {[%clk 0:00:52.7]} 24... Qe2 {[%clk 0:02:16.5]} 25.
Qxh7# {[%clk 0:00:51]} 1

[Event "Torneo Nuevo Centro. Jornada 10"]
[Site "Chess.com"]
[Date "2020.08.21"]
[Round "8"]
[White "Macias Pino, Diego"]
[Black "Aymerich Rosell, Pablo"]
[Result "1-0"]
[WhiteElo "2264"]
[BlackElo "1995"]
[TimeControl "180+2"]
[EndTime "11:56:27 PDT"]
[Termination "Victoria de adivinaquiensoy por abandono"]

1. d4 {[%clk 0:03:01.9]} 1... Nf6 {[%clk 0:02:59.8]} 2. Nf3 {[%clk 0:02:53.9]}
2... g6 {[%clk 0:02:59]} 3. c3 {[%clk 0:02:47.9]} 3... d5 {[%clk 0:02:58.7]} 4.
Bf4 {[%clk 0:02:49.1]} 4... Bg7 {[%clk 0:02:58.7]} 5. Nbd2 {[%clk 0:02:50.5]}
5... O-O {[%clk 0:02:59]} 6. e3 {[%clk 0:02:45.5]} 6... b6 {[%clk 0:02:58.5]} 7.
h3 {[%clk 0:02:46.1]} 7... c5 {[%clk 0:02:59]} 8. Qc2 {[%clk 0:02:46.5]} 8...
Bb7 {[%clk 0:02:59]} 9. Bd3 {[%clk 0:02:46.7]} 9... Nbd7 {[%clk 0:02:52.2]} 10.
O-O {[%clk 0:02:46.8]} 10... c4 {[%clk 0:02:51.9]} 11. Be2 {[%clk 0:02:47.3]}
11... b5 {[%clk 0:02:53.1]} 12. Rfe1 {[%clk 0:02:40.9]} 12... a5 {[%clk
0:02:53.7]} 13. b3 {[%clk 0:02:38.3]} 13... Rc8 {[%clk 0:02:50.3]} 14. a4 {[%clk
0:02:36.7]} 14... cxb3 {[%clk 0:02:43.7]} 15. Qxb3 {[%clk 0:02:34.2]} 15... b4
{[%clk 0:02:25.4]} 16. cxb4 {[%clk 0:02:30.8]} 16... axb4 {[%clk 0:02:26]} 17.
Qxb4 {[%clk 0:02:30.4]} 17... Bc6 {[%clk 0:02:21.8]} 18. a5 {[%clk 0:02:25.5]}
18... Nh5 {[%clk 0:02:16.2]} 19. Bh2 {[%clk 0:02:25.4]} 19... f5 {[%clk
0:02:06.6]} 20. Ng5 {[%clk 0:02:18.6]} 20... Rf6 {[%clk 0:01:55.3]} 21. Be5
{[%clk 0:02:19]} 21... Nxe5 {[%clk 0:01:47.6]} 22. dxe5 {[%clk 0:02:20.9]} 22...
Rf8 {[%clk 0:01:42.5]} 23. Ne6 {[%clk 0:02:21.6]} 23... Qd7 {[%clk 0:01:42.5]}
24. Nxf8 {[%clk 0:02:22.5]} 24... Rxf8 {[%clk 0:01:42.7]} 25. Bxh5 {[%clk
0:02:21.1]} 25... gxh5 {[%clk 0:01:42.9]} 26. Nf3 {[%clk 0:02:17.2]} 26... f4
{[%clk 0:01:38.4]} 27. exf4 {[%clk 0:01:45]} 27... d4 {[%clk 0:01:38.9]} 28.
Qxd4 {[%clk 0:01:45.2]} 28... Qf5 {[%clk 0:01:35]} 29. Qc4+ {[%clk 0:01:43.4]}
29... Kh8 {[%clk 0:01:30.6]} 30. Qxc6 {[%clk 0:01:35.9]} 30... Qxf4 {[%clk
0:01:31.2]} 31. a6 {[%clk 0:01:32.7]} 1